bitfinex-derivatives/quotes_BTCF0:USTF0_20241006
["timestamp","ask_amount","ask_price","bid_price","bid_amount"]
[1728240505682,0.14062369,62743.0,62742.0,0.003]
[1728240506082,0.50142369,62743.0,62742.0,0.003]
[1728240506496,0.14062369,62743.0,62742.0,0.003]
[1728240506694,0.50142369,62743.0,62742.0,0.003]
[1728240509003,0.14062369,62743.0,62742.0,0.003]
[1728240509290,0.50142369,62743.0,62742.0,0.003]
[1728240511196,0.14062369,62743.0,62742.0,0.003]
[1728240511397,0.50142369,62743.0,62742.0,0.003]
[1728240516396,0.14062369,62743.0,62742.0,0.003]
[1728240516802,0.50142369,62743.0,62742.0,0.003]
[1728240518197,0.14062369,62743.0,62742.0,0.003]
[1728240518696,0.50142369,62743.0,62742.0,0.003]
[1728240520598,0.14062369,62743.0,62742.0,0.003]
[1728240520799,0.50142369,62743.0,62742.0,0.003]
[1728240523702,0.14062369,62743.0,62742.0,0.003]
[1728240523899,0.50142369,62743.0,62742.0,0.003]
[1728240525416,0.14062369,62743.0,62742.0,0.003]
[1728240525602,0.50142369,62743.0,62742.0,0.003]
[1728240525802,0.50142369,62743.0,62742.0,0.050812]
[1728240526410,0.14062369,62743.0,62742.0,0.050812]
[1728240526611,0.50142369,62743.0,62742.0,0.050812]
[1728240528516,0.14062369,62743.0,62742.0,0.050812]
[1728240528714,0.50142369,62743.0,62742.0,0.003]
[1728240533212,0.50142369,62743.0,62742.0,0.06677289]
[1728240533521,0.14062369,62743.0,62742.0,0.06677289]
[1728240533916,0.50142369,62743.0,62742.0,0.06677289]
[1728240535809,0.14062369,62743.0,62742.0,0.003]
[1728240536014,0.50142369,62743.0,62742.0,0.003]
[1728240538136,0.14062369,62743.0,62742.0,0.003]
[1728240538321,0.50142369,62743.0,62742.0,0.003]
[1728240538622,0.39142369,62743.0,62742.0,0.003]
[1728240540618,0.56517869,62743.0,62742.0,0.003]
[1728240542221,0.45517869,62743.0,62742.0,0.003]
[1728240556359,0.0074,62749.0,62742.0,1.44196]
[1728240556562,0.0074,62749.0,62748.0,0.17375]
[1728240556767,0.0074,62753.0,62752.0,0.063746]
[1728240556954,0.38971594,62759.0,62752.0,0.173746]
[1728240556955,0.0074,62757.0,62752.0,0.173746]
[1728240557153,0.3645,62759.0,62756.0,0.11]
[1728240557154,0.3608,62759.0,62756.0,0.11]
[1728240559157,0.3708,62759.0,62756.0,0.111]
[1728240559471,0.3728,62759.0,62756.0,0.111]
[1728240559965,0.3728,62759.0,62756.0,0.001]
[1728240560271,0.11,62758.0,62756.0,0.001]
[1728240561263,0.063741,62757.0,62756.0,0.001]
[1728240562265,0.063742,62756.0,62751.0,0.0037]
[1728240562465,0.11,62752.0,62751.0,0.0037]
[1728240562660,0.11,62752.0,62748.0,0.3608]
[1728240563072,0.11,62752.0,62745.0,0.11]
[1728240563256,0.11,62752.0,62746.0,0.3608]
[1728240563763,0.11,62752.0,62751.0,0.003]
[1728240563968,0.117,62752.0,62751.0,0.003]
[1728240565557,0.116,62752.0,62751.0,0.003]
[1728240565753,0.117,62752.0,62747.0,0.0067]
[1728240566253,0.116,62752.0,62747.0,0.0037]
[1728240566457,0.116,62752.0,62751.0,0.003]
[1728240566656,0.11,62752.0,62751.0,0.003]
[1728240566964,0.12,62752.0,62751.0,0.001]
[1728240569069,0.119,62752.0,62751.0,0.004]
[1728240570060,0.14751379,62752.0,62751.0,0.004]
[1728240572377,0.03751379,62752.0,62751.0,0.004]
[1728240576084,0.009,62752.0,62751.0,0.067747]
[1728240586974,0.009,62752.0,62751.0,0.09668032]
[1728240588373,0.009,62752.0,62751.0,0.004]
[1728240604086,0.119,62752.0,62751.0,0.004]
[1728240604597,0.182746,62752.0,62751.0,0.004]
[1728240609092,0.214246,62752.0,62751.0,0.004]
[1728240609797,0.246746,62752.0,62751.0,0.004]
[1728240611590,0.607546,62752.0,62751.0,0.004]
[1728240617608,0.246746,62752.0,62751.0,0.004]
[1728240617907,0.607546,62752.0,62751.0,0.004]
[1728240630115,0.497546,62752.0,62751.0,0.004]
[1728240630415,0.607546,62752.0,62751.0,0.004]
[1728240631699,0.575046,62752.0,62751.0,0.004]
[1728240632213,0.214246,62752.0,62751.0,0.004]
[1728240632410,0.575046,62752.0,62751.0,0.004]
[1728240642706,0.214246,62752.0,62751.0,0.004]
[1728240642906,0.575046,62752.0,62751.0,0.004]
[1728240643716,0.433546,62752.0,62751.0,0.004]
[1728240644717,0.3698,62752.0,62751.0,0.004]
[1728240658841,0.433546,62752.0,62751.0,0.004]
[1728240659028,0.464346,62752.0,62751.0,0.004]
[1728240659428,0.496546,62752.0,62751.0,0.004]
[1728240662440,0.496546,62752.0,62751.0,0.002]
[1728240668340,1.574626,62752.0,62751.0,0.002]
[1728240670350,0.06375,62748.0,62747.0,0.0037]
[1728240670545,0.063752,62746.0,62742.0,0.0037]
[1728240670738,0.11,62745.0,62738.0,0.0037]
[1728240670938,0.11,62741.0,62738.0,0.0037]
[1728240671139,0.11,62741.0,62735.0,0.3926]
[1728240671340,0.11,62737.0,62735.0,0.3926]
[1728240673239,0.11,62737.0,62735.0,0.456363]
[1728240673652,0.111,62737.0,62735.0,0.462363]
[1728240674249,0.112,62737.0,62735.0,0.462363]
[1728240676858,0.14062203,62737.0,62735.0,0.462363]
[1728240679457,0.112,62737.0,62735.0,0.462363]
[1728240682955,0.112,62737.0,62735.0,0.101563]
[1728240683156,0.112,62737.0,62735.0,0.462363]
[1728240689354,0.002,62737.0,62736.0,0.063762]
[1728240689560,0.0074,62741.0,62740.0,0.063758]
[1728240689763,0.0074,62746.0,62740.0,0.11]
[1728240689962,0.0074,62746.0,62743.0,0.11]
[1728240690168,0.0074,62749.0,62743.0,0.11]
[1728240690966,0.3618,62745.0,62743.0,0.11]
[1728240691165,0.39043352,62745.0,62743.0,0.11]
[1728240691459,0.39243352,62745.0,62742.0,0.063756]
[1728240692564,0.39143352,62745.0,62743.0,0.001]
[1728240692950,0.39143352,62745.0,62742.0,0.065756]
[1728240693156,0.38943352,62745.0,62742.0,0.065756]
[1728240693461,0.38943352,62745.0,62742.0,0.002]
[1728240694061,0.39043352,62745.0,62742.0,0.002]
[1728240694969,0.38943352,62745.0,62742.0,0.002]
[1728240695466,0.02863352,62745.0,62742.0,0.3628]
[1728240695666,0.11,62748.0,62742.0,0.3628]
[1728240697067,0.111,62748.0,62742.0,0.001]
[1728240697865,0.14001832,62748.0,62742.0,0.001]
[1728240699369,0.20376832,62748.0,62742.0,0.001]
[1728240701266,0.03001832,62748.0,62747.0,0.11]
[1728240701567,0.001,62748.0,62747.0,0.11]
[1728240702070,0.0074,62753.0,62747.0,1.18812]
[1728240702256,0.0074,62753.0,62745.0,0.3608]
[1728240702257,0.0074,62753.0,62752.0,0.11]
[1728240702565,0.3608,62756.0,62752.0,0.11]
[1728240703656,0.01,62753.0,62752.0,0.001]
[1728240703862,0.01,62753.0,62752.0,0.111]
[1728240704569,0.01,62753.0,62752.0,0.001]
[1728240704767,0.399,62756.0,62752.0,0.001]
[1728240704973,0.006,62753.0,62752.0,0.001]
[1728240706468,0.014,62753.0,62752.0,0.001]
[1728240713877,0.014,62753.0,62752.0,0.111]
[1728240717178,0.014,62753.0,62752.0,0.001]
[1728240719581,0.014,62753.0,62752.0,0.174746]
[1728240725785,0.014,62753.0,62752.0,0.111]
[1728240727481,0.014,62753.0,62752.0,0.001]
[1728240739887,0.014,62753.0,62752.0,0.064746]
[1728240747289,0.0074,62758.0,62757.0,0.063741]
[1728240747490,0.00814218,62763.0,62760.0,0.11]
[1728240747795,0.05942572,62768.0,62760.0,0.11]
[1728240747993,0.05942572,62768.0,62765.0,0.11]
[1728240748197,0.02922572,62768.0,62765.0,0.11]
[1728240748399,0.50729525,62769.0,62765.0,0.11]
[1728240748700,0.53517316,62769.0,62765.0,0.11]
[1728240749293,0.009,62768.0,62765.0,0.111]
[1728240750202,0.009,62768.0,62765.0,0.112]
[1728240750698,0.11,62766.0,62765.0,0.001]
[1728240750894,0.11,62766.0,62765.0,0.002]
[1728240751297,0.1404,62766.0,62765.0,0.002]
[1728240752800,0.1544,62766.0,62765.0,0.002]
[1728240763410,0.1404,62766.0,62765.0,0.001]
[1728240763610,0.1544,62766.0,62765.0,0.002]
[1728240763811,0.0444,62766.0,62765.0,0.002]
[1728240765017,0.0464,62766.0,62765.0,0.002]
[1728240774027,0.4072,62766.0,62765.0,0.002]
[1728240778128,0.0464,62766.0,62765.0,0.002]
[1728240778520,0.4072,62766.0,62765.0,0.002]
[1728240781017,0.5172,62766.0,62765.0,0.002]
[1728240788633,0.1564,62766.0,62765.0,0.002]
[1728240788838,0.5172,62766.0,62765.0,0.002]
[1728240789332,0.1564,62766.0,62765.0,0.002]
[1728240789642,0.580931,62766.0,62765.0,0.002]
[1728240789838,0.063736,62762.0,62761.0,0.0037]
[1728240790036,0.063737,62761.0,62758.0,0.0037]
[1728240790233,0.11,62758.0,62757.0,0.04783013]
[1728240791741,0.112,62758.0,62757.0,0.04883013]
[1728240792941,0.1413419,62758.0,62757.0,0.04883013]
[1728240793144,0.1473419,62758.0,62757.0,0.04983013]
[1728240802651,0.5081419,62758.0,62757.0,0.04983013]
[1728240803237,0.1473419,62758.0,62757.0,0.04983013]
[1728240803858,0.5081419,62758.0,62757.0,0.04983013]
[1728240805147,0.1473419,62758.0,62757.0,0.04983013]
[1728240805342,0.5081419,62758.0,62757.0,0.04983013]
[1728240805955,0.1473419,62758.0,62757.0,0.04983013]
[1728240806453,0.5081419,62758.0,62757.0,0.04983013]
[1728240811949,0.5081419,62758.0,62757.0,0.002]
[1728240813962,0.1473419,62758.0,62757.0,0.002]
[1728240814159,0.5081419,62758.0,62757.0,0.002]
[1728240823868,0.1473419,62758.0,62757.0,0.002]
[1728240824066,0.5081419,62758.0,62757.0,0.002]
[1728240824770,0.1473419,62758.0,62757.0,0.002]
[1728240824970,0.5081419,62758.0,62757.0,0.002]
[1728240841272,0.5718819,62758.0,62757.0,0.002]
[1728240843572,0.063745,62753.0,62752.0,0.0111]
[1728240843776,0.063745,62753.0,62745.0,0.0043]
[1728240843777,0.063746,62752.0,62747.0,0.0111]
[1728240843980,0.11,62748.0,62744.0,0.09002509]
[1728240844191,0.11,62748.0,62744.0,0.0311]
[1728240844686,0.11,62745.0,62744.0,0.0311]
[1728240845681,0.11,62745.0,62744.0,0.0341]
[1728240846585,0.11,62747.0,62744.0,0.0341]
[1728240846790,0.11,62747.0,62744.0,0.16733929]
[1728240847087,0.001,62745.0,62744.0,0.17233929]
[1728240848091,0.111,62747.0,62744.0,0.17233929]
[1728240848585,0.111,62747.0,62744.0,0.16933929]
[1728240848781,0.111,62747.0,62744.0,0.17233929]
[1728240849794,0.001,62745.0,62744.0,0.17233929]
[1728240850178,0.13809353,62747.0,62744.0,0.16733929]
[1728240850378,0.02909353,62747.0,62744.0,0.17233929]
[1728240850590,0.13909353,62747.0,62744.0,0.23609329]
[1728240850789,0.02809353,62747.0,62744.0,0.23109329]
[1728240851090,0.001,62745.0,62744.0,0.23609329]
[1728240851284,0.3682,62751.0,62744.0,0.28233929]
[1728240851489,0.0074,62751.0,62749.0,0.173748]
[1728240851681,0.071143,62755.0,62749.0,0.11]
[1728240851883,0.071143,62755.0,62750.0,0.063748]
[1728240852179,0.063744,62754.0,62750.0,0.063748]
[1728240853588,0.03566458,62755.0,62750.0,0.063748]
[1728240853800,0.03566458,62755.0,62750.0,0.064748]
[1728240854484,0.03866458,62755.0,62750.0,0.064748]
[1728240865303,0.11,62753.0,62750.0,0.001]
[1728240866488,0.095646,62752.0,62745.0,0.0111]
[1728240866690,0.095646,62752.0,62750.0,0.001]
[1728240866890,0.11,62751.0,62750.0,0.001]
[1728240867597,0.11,62751.0,62745.0,0.0111]
[1728240867802,0.11,62747.0,62745.0,0.0171]
[1728240868002,0.11,62747.0,62745.0,0.006]
[1728240869103,0.11,62747.0,62745.0,0.008]
[1728240869309,0.11,62747.0,62745.0,0.002]
[1728240870002,0.111,62747.0,62745.0,0.008]
[1728240873798,0.111,62747.0,62746.0,0.04782509]
[1728240875103,0.111,62747.0,62746.0,0.04882509]
[1728240875803,0.001,62747.0,62746.0,0.05482509]
[1728240877609,0.001,62747.0,62746.0,0.007]
[1728240877912,0.001,62747.0,62746.0,0.05482509]
[1728240881310,0.0303713,62747.0,62746.0,0.007]
[1728240881517,0.001,62747.0,62746.0,0.007]
[1728240885609,0.02901601,62747.0,62746.0,0.007]
[1728240911719,0.09276701,62747.0,62746.0,0.007]
[1728240913125,0.001,62747.0,62746.0,0.180752]
[1728240913329,0.063736,62762.0,62753.0,0.063745]
[1728240913519,0.0074,62761.0,62753.0,0.11]
[1728240913720,0.3682,62765.0,62758.0,0.11]
[1728240913929,0.3608,62765.0,62763.0,0.1026]
[1728240914433,0.38976041,62765.0,62763.0,0.1026]
[1728240916534,0.38976041,62765.0,62763.0,0.1036]
[1728240916535,0.40176041,62765.0,62763.0,0.1036]
[1728240917038,0.40576041,62765.0,62763.0,0.1046]
[1728240919837,0.3768,62765.0,62763.0,0.1046]
[1728240929540,0.016,62765.0,62763.0,0.1046]
[1728240929741,0.3768,62765.0,62763.0,0.1046]
[1728240932440,0.016,62765.0,62763.0,0.1046]
[1728240932942,0.3768,62765.0,62763.0,0.1046]
[1728240934046,0.016,62765.0,62763.0,0.1046]
[1728240934539,0.3768,62765.0,62763.0,0.1046]
[1728240934848,0.3768,62765.0,62764.0,0.063733]
[1728240936236,0.3648,62765.0,62764.0,0.063733]
[1728240936437,0.3778,62765.0,62764.0,0.065733]
[1728240940045,0.017,62765.0,62764.0,0.065733]
[1728240940447,1e-08,62768.0,62767.0,0.06373]
[1728240940652,1e-08,62768.0,62767.0,0.17373]
[1728240941942,1e-08,62768.0,62767.0,0.17473]
[1728240941943,0.00400001,62768.0,62767.0,0.17473]
[1728240942142,0.004,62768.0,62767.0,0.53553]
[1728240942850,0.012,62768.0,62767.0,0.53653]
[1728240958066,0.012,62768.0,62767.0,0.17573]
[1728240958252,0.012,62768.0,62767.0,0.53653]
[1728240960155,0.012,62768.0,62767.0,0.17573]
[1728240960353,0.012,62768.0,62767.0,0.53653]
[1728240967768,0.012,62768.0,62767.0,0.58435509]
[1728240968565,0.012,62768.0,62767.0,0.53653]
[1728240970372,0.012,62768.0,62767.0,0.60029678]
[1728240971073,0.012,62768.0,62767.0,0.53653]
[1728240971273,0.012,62768.0,62767.0,0.60029678]
[1728240972172,0.012,62768.0,62767.0,0.53653]
[1728240978175,0.012,62768.0,62767.0,0.42653]
[1728240978483,0.012,62768.0,62766.0,0.063731]
[1728240979583,0.008,62768.0,62766.0,0.064731]
[1728240979882,0.008,62768.0,62766.0,0.001]
[1728240980978,0.17373,62767.0,62763.0,0.04774057]
[1728240981175,0.11,62764.0,62762.0,0.0111]
[1728240981375,0.0316,62763.0,62761.0,0.40986057]
[1728240981585,0.0623,62763.0,62761.0,0.3608]
[1728240982387,0.0713,62763.0,62761.0,0.3618]
[1728240982776,0.0713,62763.0,62761.0,0.001]
[1728240983078,0.0733,62763.0,62761.0,0.002]
[1728240984483,0.0332,62762.0,62761.0,0.002]
[1728240986087,0.0332,62762.0,62761.0,0.001]
[1728240986088,0.0422,62762.0,62761.0,0.001]
[1728240986286,0.0452,62762.0,62761.0,0.002]
[1728241009203,0.0452,62762.0,62761.0,0.06576678]
[1728241009405,0.0452,62762.0,62761.0,0.002]
[1728241024019,0.108936,62762.0,62761.0,0.002]
[1728241037730,0.139936,62762.0,62761.0,0.002]
[1728241038224,0.172736,62762.0,62761.0,0.04975894]
[1728241038626,0.172736,62762.0,62761.0,0.002]
[1728241040639,0.533536,62762.0,62761.0,0.002]
[1728241041837,0.063741,62757.0,62756.0,0.0111]
[1728241042038,0.063745,62753.0,62752.0,0.0111]
[1728241042231,0.063745,62753.0,62749.0,0.0376]
[1728241042232,0.173745,62753.0,62749.0,0.0302]
[1728241042438,0.11,62750.0,62749.0,0.0302]
[1728241043831,0.11,62750.0,62749.0,0.0332]
[1728241045350,0.11,62750.0,62749.0,0.0362]
[1728241047957,0.02932649,62753.0,62752.0,0.063746]
[1728241048248,0.06374,62758.0,62752.0,0.173746]
[1728241048650,0.09312105,62758.0,62752.0,0.173746]
[1728241051453,0.02938105,62758.0,62752.0,0.173746]
[1728241051650,0.063741,62757.0,62752.0,0.173746]
[1728241052356,0.063741,62757.0,62752.0,0.22150494]
[1728241053151,0.063741,62757.0,62752.0,0.173746]
[1728241055351,0.09227489,62757.0,62752.0,0.173746]
[1728241059255,0.3608,62756.0,62752.0,0.173746]
[1728241061355,0.09227489,62757.0,62752.0,0.173746]
[1728241061356,0.3651,62779.0,62755.0,0.4708]
[1728241061550,0.3645,62779.0,62770.0,0.11]
[1728241061755,0.3645,62779.0,62773.0,0.11]
[1728241061756,0.3608,62779.0,62773.0,0.11]
[1728241062159,0.4708,62779.0,62773.0,0.11]
[1728241062464,0.4708,62779.0,62771.0,0.1429]
[1728241062655,0.49965482,62779.0,62771.0,0.1429]
[1728241063252,0.01039015,62776.0,62773.0,0.001]
[1728241064556,0.01339015,62776.0,62773.0,0.002]
[1728241064857,0.01139015,62776.0,62773.0,0.001]
[1728241065461,0.01339015,62776.0,62773.0,0.002]
[1728241070975,0.12339015,62776.0,62773.0,0.002]
[1728241085375,0.37419015,62776.0,62773.0,0.002]
[1728241087181,0.01339015,62776.0,62773.0,0.002]
[1728241087475,0.3608,62775.0,62773.0,0.002]
[1728241088464,0.3608,62775.0,62773.0,0.001]
[1728241088672,0.3638,62775.0,62773.0,0.002]
[1728241088872,0.3638,62775.0,62773.0,0.001]
[1728241089080,0.3718,62775.0,62773.0,0.002]
[1728241092575,0.011,62775.0,62773.0,0.002]
[1728241092869,0.11,62774.0,62773.0,0.002]
[1728241093075,0.1423,62774.0,62773.0,0.002]
[1728241093277,0.0323,62774.0,62773.0,0.002]
[1728241094063,0.0403,62774.0,62773.0,0.002]
[1728241094467,0.0403,62774.0,62773.0,0.001]
[1728241094674,0.0433,62774.0,62773.0,0.002]
[1728241104689,0.217023,62774.0,62773.0,0.002]
[1728241107784,0.011,62774.0,62773.0,0.002]
[1728241108474,0.011,62774.0,62773.0,0.065724]
[1728241114477,0.011,62774.0,62773.0,0.002]
[1728241120382,0.184723,62774.0,62773.0,0.002]
[1728241128591,0.011,62774.0,62773.0,0.002]
[1728241129397,0.011,62774.0,62773.0,0.112]
[1728241130302,0.011,62774.0,62773.0,0.175724]
[1728241130500,0.011,62774.0,62773.0,0.238324]
[1728241130905,0.011,62774.0,62773.0,0.0322]
[1728241131120,0.011,62774.0,62773.0,0.002]
[1728241140624,0.121,62774.0,62773.0,0.002]
[1728241141141,0.184723,62774.0,62773.0,0.002]
[1728241143717,0.545523,62774.0,62773.0,0.002]
[1728241153234,0.435523,62774.0,62773.0,0.002]
[1728241153432,0.011,62774.0,62773.0,0.002]
[1728241154035,0.011,62774.0,62773.0,0.065724]
[1728241173348,0.011,62774.0,62773.0,0.002]
[1728241174245,0.0438,62774.0,62773.0,0.002]
[1728241184868,0.4046,62774.0,62773.0,0.002]
[1728241185470,0.0438,62774.0,62773.0,0.002]
[1728241185777,0.4046,62774.0,62773.0,0.002]
[1728241188381,0.0438,62774.0,62773.0,0.002]
[1728241188562,0.4046,62774.0,62773.0,0.002]
[1728241190368,0.0438,62774.0,62773.0,0.002]
[1728241190772,0.4046,62774.0,62773.0,0.002]
[1728241190966,0.0438,62774.0,62773.0,0.002]
[1728241191272,0.4046,62774.0,62773.0,0.002]
[1728241196184,0.0438,62774.0,62773.0,0.002]
[1728241196376,0.4046,62774.0,62773.0,0.002]
[1728241196975,0.0438,62774.0,62773.0,0.002]
[1728241197176,0.4046,62774.0,62773.0,0.002]
[1728241202972,0.0438,62774.0,62773.0,0.002]
[1728241205089,0.1538,62774.0,62773.0,0.002]
[1728241213794,0.0438,62774.0,62773.0,0.002]
[1728241215595,0.011,62774.0,62773.0,0.002]
[1728241217492,0.011,62774.0,62773.0,0.065724]
[1728241231109,0.011,62774.0,62773.0,0.175724]
[1728241239610,0.011,62774.0,62773.0,0.065724]
[1728241239806,0.011,62774.0,62773.0,0.175724]
[1728241242108,0.3608,62782.0,62781.0,0.063716]
[1728241242310,0.3608,62782.0,62781.0,0.11]
[1728241243535,0.3638,62782.0,62781.0,0.111]
[1728241243703,0.3658,62782.0,62781.0,0.112]
[1728241246411,0.3658,62782.0,62781.0,0.175716]
[1728241259423,0.005,62782.0,62781.0,0.175716]
[1728241260320,0.005,62782.0,62781.0,0.065716]
[1728241260824,0.005,62782.0,62781.0,0.175716]
[1728241263913,0.005,62782.0,62781.0,0.065716]
[1728241264129,0.005,62782.0,62781.0,0.175716]
[1728241279640,0.005,62782.0,62781.0,0.22347494]
[1728241279822,0.005,62782.0,62781.0,0.175716]
[1728241281639,0.0316,62789.0,62781.0,0.4728]
[1728241281840,0.3608,62799.0,62788.0,0.11]
[1728241281841,1.21258,62794.0,62788.0,0.11]
[1728241282132,1.208,62794.0,62793.0,0.173704]
[1728241283739,1.208,62794.0,62793.0,0.174704]
[1728241284735,1.208,62794.0,62793.0,0.20292038]
[1728241284927,1.208,62794.0,62793.0,0.20392038]
[1728241286538,1.208,62794.0,62793.0,0.56472038]
[1728241290731,0.24289026,62794.0,62793.0,0.56472038]
[1728241291840,0.24289026,62794.0,62793.0,1.64248038]
[1728241292834,0.24289026,62794.0,62793.0,1.04248038]
[1728241293040,0.24289026,62794.0,62793.0,1.04148038]
[1728241293441,0.24289026,62794.0,62793.0,1.04248038]
[1728241293636,0.24289026,62794.0,62793.0,1.64248038]
[1728241293944,0.24289026,62794.0,62793.0,0.56472038]
[1728241296832,0.24289026,62794.0,62793.0,1.53248038]
[1728241297039,0.24289026,62794.0,62793.0,1.16472038]
[1728241297650,0.24289026,62794.0,62793.0,0.56472038]
[1728241298141,0.24289026,62794.0,62793.0,0.45472038]
[1728241298344,0.24289026,62794.0,62793.0,0.56472038]
[1728241301636,0.20305045,62794.0,62793.0,0.56472038]
[1728241305341,0.20305045,62794.0,62793.0,0.61239168]
[1728241305845,0.20305045,62794.0,62793.0,0.56472038]
[1728241306043,0.20305045,62794.0,62793.0,0.61216014]
[1728241307336,0.20305045,62794.0,62793.0,0.56472038]
[1728241309345,0.20305045,62794.0,62793.0,0.62839017]
[1728241309537,0.20305045,62794.0,62793.0,0.56472038]
[1728241310847,0.20305045,62794.0,62793.0,0.45472038]
[1728241311060,0.20305045,62794.0,62793.0,0.56472038]
[1728241313542,0.20305045,62794.0,62793.0,0.426504]
[1728241315544,0.26675345,62794.0,62793.0,0.3129]
[1728241315948,0.37675345,62794.0,62793.0,0.3129]
[1728241316151,0.37675345,62794.0,62793.0,0.263]
[1728241317558,0.37675345,62794.0,62789.0,0.184808]
[1728241317743,0.37675345,62794.0,62790.0,0.3608]
[1728241319259,0.26675345,62794.0,62790.0,0.3608]
[1728241319449,0.26675345,62794.0,62790.0,0.424507]
[1728241319652,0.26875345,62794.0,62790.0,0.424507]
[1728241320255,0.26675345,62794.0,62790.0,0.424507]
[1728241320462,0.26875345,62794.0,62790.0,0.425507]
[1728241320759,0.26875345,62794.0,62791.0,0.063706]
[1728241321248,0.20505045,62794.0,62791.0,0.063706]
[1728241322857,0.20405045,62794.0,62791.0,0.064706]
[1728241323055,0.20405045,62794.0,62791.0,0.065706]
[1728241323551,0.20405045,62794.0,62793.0,0.063704]
[1728241324862,0.20405045,62794.0,62793.0,0.064704]
[1728241325955,0.20305045,62794.0,62793.0,0.064704]
[1728241326259,0.20405045,62794.0,62793.0,0.065704]
[1728241336467,0.20405045,62794.0,62793.0,0.002]
[1728241338475,0.20405045,62794.0,62793.0,0.098704]
[1728241340363,0.15415045,62794.0,62793.0,0.098704]
[1728241340562,0.15415045,62794.0,62793.0,0.130704]
[1728241342680,0.10425045,62794.0,62793.0,0.130704]
[1728241346879,0.10425045,62794.0,62793.0,0.491504]
[1728241349381,0.0037,62802.0,62801.0,0.063696]
[1728241349584,0.063687,62810.0,62805.0,0.063692]
[1728241349772,0.063687,62810.0,62809.0,0.11]
[1728241352485,0.09295617,62810.0,62809.0,0.111]
[1728241353371,0.09295617,62810.0,62809.0,0.112]
[1728241353688,0.02926917,62810.0,62809.0,0.112]
[1728241353884,0.3608,62814.0,62809.0,0.112]
[1728241354083,0.3608,62814.0,62812.0,0.11]
[1728241355783,0.3608,62814.0,62812.0,0.111]
[1728241356390,0.38945534,62814.0,62812.0,0.111]
[1728241356690,0.38945534,62814.0,62812.0,0.112]
[1728241357290,0.45313834,62814.0,62812.0,0.112]
[1728241360890,0.063684,62813.0,62812.0,0.112]
[1728241361690,0.063684,62813.0,62812.0,0.002]
[1728241363885,0.424484,62813.0,62812.0,0.002]
[1728241364285,0.48159361,62813.0,62812.0,0.002]
[1728241364591,0.12079361,62813.0,62812.0,0.002]
[1728241364893,1.612084,62813.0,62812.0,0.002]
[1728241365094,1.67743089,62813.0,62812.0,0.002]
[1728241366392,0.96743089,62813.0,62812.0,0.002]
[1728241366599,0.3608,62813.0,62812.0,0.002]
[1728241366779,0.41790918,62813.0,62812.0,0.002]
[1728241367186,0.41790918,62813.0,62812.0,0.065685]
[1728241368491,0.41790918,62813.0,62812.0,0.064685]
[1728241368698,0.41790918,62813.0,62812.0,0.065685]
[1728241368899,0.41790918,62813.0,62812.0,0.064685]
[1728241369192,0.41790918,62813.0,62812.0,0.065685]
[1728241369698,0.3608,62813.0,62812.0,0.065685]
[1728241373589,0.3608,62813.0,62812.0,0.175685]
[1728241376700,0.41790651,62813.0,62812.0,0.175685]
[1728241377294,0.05710651,62813.0,62812.0,0.175685]
[1728241377501,0.05710651,62818.0,62812.0,0.175685]
[1728241377695,0.05710011,62817.0,62815.0,0.11]
[1728241377898,0.0934,62829.0,62820.0,0.063677]
[1728241377899,0.05710011,62821.0,62820.0,0.063677]
[1728241378097,0.05710011,62821.0,62820.0,0.173677]
[1728241378597,0.0934,62829.0,62824.0,0.063673]
[1728241378804,0.08794134,62825.0,62824.0,0.173673]
[1728241379003,0.05948497,62825.0,62824.0,0.173673]
[1728241379307,0.00238823,62825.0,62824.0,0.173673]
[1728241379899,0.00238823,62825.0,62824.0,0.174673]
[1728241380097,0.00238823,62825.0,62824.0,0.175673]
[1728241380294,0.05709674,62830.0,62829.0,0.063668]
[1728241380501,0.05709674,62830.0,62829.0,0.173668]
[1728241382302,0.05709674,62830.0,62829.0,0.175668]
[1728241383506,0.02912465,62833.0,62829.0,0.175668]
[1728241383507,0.02912465,62833.0,62832.0,0.063665]
[1728241383707,0.05709674,62835.0,62832.0,0.173665]
[1728241384303,0.00794918,62834.0,62833.0,0.063663]
[1728241384703,0.05709674,62835.0,62833.0,0.063663]
[1728241385014,0.11,62835.0,62829.0,0.0131]
[1728241385312,0.45266511,62836.0,62829.0,0.0131]
[1728241385313,0.11,62830.0,62829.0,0.0131]
[1728241385512,0.11,62830.0,62829.0,0.002]
[1728241385695,0.11,62830.0,62829.0,0.001]
[1728241386097,0.11,62830.0,62828.0,0.063668]
[1728241386310,0.11,62830.0,62829.0,0.001]
[1728241386908,0.11,62830.0,62829.0,0.002]
[1728241388807,0.11,62833.0,62829.0,0.065667]
[1728241389909,0.45266511,62836.0,62829.0,0.112]
[1728241389910,0.38900411,62836.0,62829.0,0.112]
[1728241390108,0.11,62835.0,62832.0,0.11]
[1728241390409,0.38900411,62836.0,62832.0,0.11]
[1728241390714,0.3608,62836.0,62835.0,0.11]
[1728241390913,0.03611823,62837.0,62835.0,0.11]
[1728241391102,0.0941,62841.0,62835.0,0.11]